bitfinex/quotes_ETHUSD_20250511
["timestamp","ask_amount","ask_price","bid_price","bid_amount"]
[1746964490815,3.96330029,2523.2,2522.6,0.8003]
[1746964491109,3.96364653,2523.0,2522.6,0.8003]
[1746964491414,3.96367172,2523.0,2522.6,0.8003]
[1746964492218,9.17363887,2523.2,2522.6,0.8003]
[1746964492518,3.963459,2523.1,2522.6,0.8003]
[1746964493118,3.96357378,2523.0,2522.6,0.8003]
[1746964493325,9.17363887,2523.2,2522.6,0.8003]
[1746964493724,0.29458554,2523.3,2522.6,0.839941]
[1746964493919,8.0,2523.3,2522.6,0.839941]
[1746964494121,3.96287683,2523.5,2522.6,0.839941]
[1746964494427,8.0,2523.3,2522.6,0.839941]
[1746964495392,14.82611697,2523.6,2522.6,0.839941]
[1746964495612,0.5,2523.0,2522.8,0.7768]
[1746964495798,0.5,2523.0,2522.9,0.81643115]
[1746964497503,0.5,2523.0,2522.9,1.36643115]
[1746964498215,0.5,2523.0,2522.9,9.36643115]
[1746964498419,10.05,2524.6,2523.2,0.55]
[1746964498608,3.96102352,2524.6,2523.4,8.0]
[1746964498913,3.96102352,2524.6,2523.5,0.82101956]
[1746964499107,3.96133844,2524.4,2523.5,0.82101956]
[1746964500337,3.96106766,2524.6,2523.5,0.82101956]
[1746964500531,1.50654599,2524.5,2523.6,0.7814]
[1746964500840,5.46773067,2524.5,2523.7,0.82101955]
[1746964501914,1.50654599,2524.5,2523.7,0.82101955]
[1746964502120,1.50654599,2524.5,2523.7,0.7814]
[1746964502742,5.46778194,2524.5,2523.7,0.7814]
[1746964503044,0.94288389,2524.4,2523.7,0.7814]
[1746964503342,11.96180816,2524.1,2523.5,0.8191]
[1746964503643,3.96254177,2523.7,2523.3,2.745]
[1746964504143,4.72910732,2523.8,2523.3,2.745]
[1746964504345,3.962187,2523.9,2523.4,0.8191]
[1746964504532,4.75471414,2523.8,2523.4,0.8191]
[1746964504732,0.7924199,2523.8,2523.4,0.8191]
[1746964505814,4.75470664,2523.8,2523.4,0.8191]
[1746964506012,0.7924199,2523.8,2523.4,0.8191]
[1746964506411,2.27324599,2524.5,2523.4,0.8191]
[1746964506618,0.94288389,2524.4,2523.4,0.8191]
[1746964506823,3.96196614,2524.0,2523.4,0.8191]
[1746964507034,3.96186118,2524.1,2523.4,0.8191]
[1746964507347,3.96168246,2524.2,2523.4,0.85872363]
[1746964507552,3.96142513,2524.4,2523.5,0.8191]
[1746964507849,0.47281251,2524.3,2523.7,0.8191]
[1746964508045,3.96109094,2524.6,2523.7,0.8191]
[1746964508251,5.02470666,2524.7,2523.9,0.8191]
[1746964508450,4.25800666,2524.7,2523.9,2.738]
[1746964508747,3.96103469,2524.6,2524.0,0.8191]
[1746964508946,3.96127009,2524.5,2524.0,0.8191]
[1746964509146,4.78320304,2524.5,2524.0,0.8191]
[1746964509516,0.82193295,2524.5,2524.0,0.8191]
[1746964509721,3.96103835,2524.6,2524.0,0.8191]
[1746964509935,3.96118043,2524.5,2524.0,0.8191]
[1746964510361,3.96134108,2524.4,2524.0,0.8191]
[1746964510553,0.7667,2524.4,2523.7,2.738]
[1746964510854,0.7667,2523.9,2523.2,2.738]
[1746964511045,3.96219077,2523.9,2523.3,0.8191]
[1746964511240,3.9622802,2523.8,2523.3,0.8191]
[1746964511749,3.96196738,2524.0,2523.3,0.8191]
[1746964511750,3.96196513,2524.0,2523.3,0.8191]
[1746964511954,3.96212211,2523.9,2523.3,0.8191]
[1746964512134,3.96290718,2523.4,2523.1,0.8191]
[1746964512336,3.96282792,2523.5,2523.1,0.8191]
[1746964512857,0.39621221,2523.8,2523.1,0.8191]
[1746964513053,4.35850453,2523.8,2523.1,0.8191]
[1746964513554,3.96269825,2523.6,2523.1,0.8191]
[1746964513759,3.96249991,2523.7,2523.1,0.8191]
[1746964514323,3.96283117,2523.5,2523.1,0.8191]
[1746964514747,3.96266406,2523.6,2523.1,0.8191]
[1746964515359,5.79959264,2523.7,2523.1,0.8191]
[1746964515660,1.83708737,2523.7,2523.1,0.8191]
[1746964516057,5.79955079,2523.7,2523.1,0.8191]
[1746964517760,4.35856909,2523.8,2523.1,0.8191]
[1746964517932,3.96269861,2523.6,2523.1,0.8191]
[1746964518133,3.9627511,2523.5,2523.1,0.8191]
[1746964518333,4.35855433,2523.8,2523.1,0.8191]
[1746964518563,3.96230572,2523.8,2523.1,0.8191]
[1746964519933,10.05,2523.9,2523.1,0.8191]
[1746964520135,14.01225851,2523.9,2523.1,0.8191]
[1746964523877,3.96350579,2523.1,2522.8,0.8329]
[1746964524080,3.96330176,2523.2,2522.8,0.8329]
[1746964524382,5.02934441,2523.2,2522.8,0.8329]
[1746964524689,3.96338322,2523.1,2522.8,0.8329]
[1746964525970,3.96357567,2523.0,2522.8,0.8329]
[1746964526277,3.96357567,2523.0,2522.6,3.5709]
[1746964526482,3.96345924,2523.1,2522.6,3.5709]
[1746964526776,4.71939969,2523.2,2522.6,3.92799]
[1746964526976,3.96315093,2523.3,2522.6,3.92799]
[1746964527178,8.7561,2523.8,2522.7,0.8329]
[1746964527340,0.7561,2523.8,2522.8,0.8329]
[1746964527642,3.96247508,2523.7,2522.8,0.8329]
[1746964528286,4.71845849,2523.8,2522.8,0.8329]
[1746964528454,3.96235849,2523.8,2522.9,0.03963323]
[1746964528654,3.96235849,2523.8,2523.0,0.8329]
[1746964528867,14.01235849,2523.8,2523.0,0.8329]
[1746964529353,10.35268165,2523.8,2523.0,0.8329]
[1746964529554,8.0,2523.5,2523.0,0.8329]
[1746964529947,8.0,2523.6,2523.0,0.8329]
[1746964531537,4.12442132,2523.5,2523.0,0.8329]
[1746964531754,3.96294349,2523.4,2523.0,0.8329]
[1746964531949,3.96346083,2523.1,2522.4,0.8329]
[1746964532175,8.0,2523.1,2522.5,2.738]
[1746964532381,0.14795864,2523.0,2522.5,2.738]
[1746964533396,11.9631478,2523.3,2522.6,0.8329]
[1746964533696,3.96248815,2523.7,2522.6,0.8329]
[1746964533697,0.7561,2523.7,2522.8,0.8329]
[1746964533893,11.96277385,2523.5,2522.8,0.8329]
[1746964534094,8.0,2523.3,2522.8,0.8329]
[1746964534394,0.14767811,2523.2,2522.8,0.8329]
[1746964534560,0.14767811,2523.2,2522.9,0.03963388]
[1746964534762,11.96282205,2523.5,2523.0,0.8329]
[1746964534958,0.14767811,2523.1,2523.0,0.8329]
[1746964535478,2.732,2523.6,2523.0,0.5829]
[1746964535672,8.13777442,2523.5,2523.1,2.738]
[1746964535871,0.13777442,2523.5,2523.1,2.738]
[1746964536297,11.96243663,2523.7,2523.1,2.738]
[1746964536459,8.0,2523.5,2523.1,2.738]
[1746964537023,0.13838301,2523.4,2523.1,2.738]
[1746964538610,0.13838301,2523.4,2523.2,0.8329]
[1746964540813,14.01236417,2523.8,2523.2,0.8329]
[1746964541014,0.13838301,2523.3,2523.2,0.8329]
[1746964541214,14.01236417,2523.8,2523.2,0.8329]
[1746964541414,0.13838301,2523.3,2523.2,0.8329]
[1746964541613,3.9625423,2523.7,2523.2,0.8329]
[1746964541787,0.13909889,2523.3,2523.2,3.5639]
[1746964541987,10.05,2523.8,2523.2,3.5639]
[1746964542182,0.13909889,2523.3,2523.2,3.5639]
[1746964542398,10.05,2523.8,2523.2,3.92029]
[1746964542598,0.13909889,2523.3,2523.2,3.5639]
[1746964542800,10.05,2523.8,2523.2,3.5639]
[1746964542987,0.13909889,2523.3,2523.2,3.5639]
[1746964543184,10.05,2523.8,2523.2,3.5639]
[1746964543390,10.05,2524.4,2523.4,0.814]
[1746964543606,1.48072039,2524.4,2523.6,0.814]
[1746964543789,3.96216838,2523.9,2523.7,2.731]
[1746964543986,3.96286389,2523.5,2523.3,0.814]
[1746964544209,3.96271508,2523.6,2523.3,0.814]
[1746964545818,3.96271508,2523.6,2523.1,3.5538]
[1746964546020,4.8348256,2523.6,2523.1,0.8228]
[1746964546208,3.96275014,2523.5,2523.1,3.5538]
[1746964546404,3.9629323,2523.4,2523.1,0.8228]
[1746964546723,3.96280869,2523.5,2523.1,0.8228]
[1746964546893,4.84254871,2523.5,2523.1,0.8228]
[1746964548612,3.96294828,2523.4,2523.1,0.8228]
[1746964548815,4.84255622,2523.5,2523.1,0.8228]
[1746964549126,0.796,2523.8,2523.1,0.8228]
[1746964549324,3.96234703,2523.8,2523.1,0.8228]
[1746964549495,6.69134703,2523.8,2523.1,0.86243039]
[1746964549829,6.98925713,2524.0,2523.1,0.86243039]
[1746964550142,3.96239007,2523.8,2523.2,0.03962709]
[1746964550298,1.09517452,2523.8,2523.3,0.8183]
[1746964551295,1.09517452,2523.8,2523.3,0.85792707]
[1746964551496,1.09517452,2523.8,2523.3,0.8183]
[1746964551708,1.09517452,2523.8,2523.4,2.731]
[1746964551709,5.05752728,2523.8,2523.4,2.731]
[1746964552234,10.05,2524.2,2523.5,0.8183]
[1746964552551,11.53072039,2524.4,2523.5,0.85792803]
[1746964552734,0.12919462,2524.1,2523.5,0.85792803]
[1746964552933,14.01140705,2524.4,2523.5,0.85792803]
[1746964553252,0.12919462,2524.3,2523.6,0.821]
[1746964553409,0.12919462,2524.3,2523.7,0.86061546]
[1746964553612,3.96105636,2524.6,2523.7,0.86061546]
[1746964553957,3.96028926,2525.1,2523.8,0.55]
[1746964554127,0.12919462,2524.5,2523.9,0.86060905]
[1746964554335,3.9604644,2525.0,2524.1,0.821]
[1746964554511,4.08975136,2524.9,2524.3,0.821]
[1746964554708,0.12919462,2524.9,2524.4,0.03960907]
[1746964554957,3.96024646,2525.1,2524.4,0.03960907]
[1746964555239,0.12919462,2524.8,2524.4,0.03960907]
[1746964555454,3.96024646,2525.1,2524.4,0.03960907]
[1746964555759,6.11063964,2525.1,2524.4,0.03960907]
[1746964555959,0.12919462,2525.0,2524.4,0.03960907]
[1746964556509,14.00998525,2525.3,2524.4,0.821]
[1746964556726,4.09308723,2525.2,2524.6,0.821]
[1746964556929,4.09308723,2525.2,2524.7,2.731]
[1746964557249,1.94328122,2525.2,2524.7,2.77060437]
[1746964557441,5.90339471,2525.2,2524.7,2.77060437]
[1746964557848,0.13299159,2525.2,2524.7,2.77060437]
[1746964558050,0.13299159,2525.2,2524.8,0.821]
[1746964558363,3.95984232,2525.4,2524.9,3.552]
[1746964558558,3.95998182,2525.3,2524.9,3.552]
[1746964558745,4.09884691,2525.3,2524.9,0.821]
[1746964558932,3.96032692,2525.1,2524.9,0.821]
[1746964559184,3.96047572,2525.0,2524.3,0.821]
[1746964559461,4.09934081,2525.0,2524.7,2.731]
[1746964559662,0.13886509,2525.0,2524.7,2.731]
[1746964559865,0.13886509,2525.0,2524.8,0.821]
[1746964560072,0.80585015,2525.3,2524.8,0.821]
[1746964560241,0.13886509,2525.2,2524.8,0.821]
[1746964560593,11.95916074,2525.8,2524.8,0.821]
[1746964560866,3.95988438,2525.4,2524.8,0.86060692]
[1746964561035,4.09881383,2525.3,2524.8,0.821]
[1746964561641,0.13886509,2525.3,2524.8,0.86060207]
[1746964561836,3.95951456,2525.6,2524.8,0.86060207]
[1746964561837,3.9597273,2525.5,2524.8,0.86060207]
[1746964562067,0.13886509,2525.4,2524.9,0.821]
[1746964562371,3.95953554,2525.6,2525.0,0.03959986]
[1746964562571,0.13922304,2525.3,2525.1,0.821]
[1746964562772,3.95953554,2525.6,2525.1,0.821]
[1746964562945,0.13922304,2525.2,2525.1,0.821]
[1746964563143,3.95898491,2525.9,2525.1,0.821]
[1746964563366,0.13922304,2525.2,2525.1,0.821]
[1746964563566,3.9590558,2525.9,2525.1,0.821]
[1746964564066,0.13922304,2525.8,2525.1,0.821]
[1746964564239,3.95872422,2526.1,2525.1,0.821]
[1746964564439,0.13922304,2526.0,2525.1,0.821]
[1746964564645,3.95870815,2526.1,2525.1,0.821]
[1746964564873,4.09817979,2526.0,2525.1,0.821]
[1746964565379,0.13922304,2526.0,2525.2,0.86059006]
[1746964565565,0.13922304,2526.0,2525.4,0.821]
[1746964565877,0.14108397,2525.9,2525.6,0.821]
[1746964566172,1.94518113,2527.2,2525.9,0.55]
[1746964566383,0.29664287,2527.8,2526.4,0.821]
[1746964566544,3.95681898,2527.3,2526.6,0.821]
[1746964566743,3.95681898,2527.3,2526.7,2.73]
[1746964566971,3.95681898,2527.3,2526.6,0.821]
[1746964567179,3.95681898,2527.3,2526.8,2.723]
[1746964567365,0.13570736,2527.2,2526.8,2.723]
[1746964567671,3.95666791,2527.4,2526.8,2.723]
[1746964567980,0.13570736,2527.3,2526.6,0.821]
[1746964568166,4.09263446,2527.3,2526.6,1.52857921]
[1746964568365,4.09263446,2527.3,2526.7,2.723]
[1746964568546,0.13570736,2527.3,2526.7,2.76257192]
[1746964569387,0.13570736,2527.3,2526.8,0.7888]
[1746964569590,3.95647988,2527.5,2526.8,0.7888]
[1746964569759,0.13570736,2527.2,2526.8,1.21073792]
[1746964569954,3.95647988,2527.5,2526.8,1.21073792]
[1746964570189,4.09239524,2527.4,2526.9,0.03956804]
[1746964570401,3.95680274,2527.3,2526.8,1.21073792]
[1746964570698,3.95680274,2527.3,2526.8,0.7888]
[1746964570699,3.95719171,2527.1,2526.8,0.7888]
[1746964570870,0.13570736,2527.0,2526.8,0.7888]
[1746964571289,0.13570736,2527.0,2526.8,3.5118]
[1746964571594,0.13570736,2527.0,2526.7,0.7888]
[1746964571959,3.95702203,2527.2,2526.7,0.7888]
[1746964572158,0.13971113,2526.9,2526.7,0.7888]
[1746964572363,3.28305894,2527.7,2526.7,1.14393754]
[1746964572564,3.95705669,2527.2,2526.7,1.14393754]
[1746964572771,3.95647873,2527.5,2526.7,0.7888]
[1746964572992,3.95663527,2527.4,2526.7,0.7888]
[1746964573294,3.95681457,2527.3,2526.7,0.7888]
[1746964573470,0.13917512,2527.2,2526.7,0.7888]
[1746964574092,3.95688486,2527.3,2526.7,0.7888]
[1746964574256,0.13917512,2527.2,2526.7,0.7888]
[1746964574756,0.94445125,2527.2,2526.7,0.7888]
[1746964575066,0.94445125,2527.2,2526.4,0.7936]
[1746964575067,3.95757894,2526.8,2526.4,0.7936]
[1746964575405,0.13924659,2526.7,2526.4,3.55517763]
[1746964575570,0.13924659,2526.7,2526.4,3.5156]
[1746964575775,3.95705489,2527.2,2526.4,3.5156]
[1746964576100,3.95708759,2527.2,2526.4,3.5156]
[1746964576288,0.13913938,2527.1,2526.4,3.5156]
[1746964576487,4.09630676,2527.1,2526.4,3.5156]
[1746964577589,4.09626647,2527.1,2526.4,3.5156]
[1746964578703,3.95727206,2527.0,2526.4,3.5156]
[1746964578904,3.95718891,2527.1,2526.4,3.5156]
[1746964579088,0.13913938,2527.0,2526.4,3.5156]
[1746964579806,3.95743923,2526.9,2526.4,3.5156]
[1746964580389,0.14235697,2526.8,2526.5,0.03957639]
[1746964580776,3.95710602,2527.1,2526.5,0.03957639]
[1746964581095,3.95702147,2527.2,2526.5,0.03957639]
[1746964581399,3.95695534,2527.2,2526.6,0.7615]
[1746964581607,0.14235697,2527.1,2526.6,0.7615]
[1746964581823,0.14235697,2527.1,2526.7,0.03957358]
[1746964582014,0.14235697,2527.1,2526.8,0.7615]
[1746964582197,3.95603745,2527.8,2526.9,0.03956611]
[1746964582400,3.95603745,2527.8,2527.0,3.4825]
[1746964582401,4.74738787,2527.7,2527.0,3.4825]
[1746964582600,4.8776736,2527.7,2527.1,0.03956592]
[1746964583121,3.9563222,2527.6,2527.0,0.7615]
[1746964583414,0.92147575,2527.7,2526.6,0.8178]
[1746964583415,3.95663527,2527.4,2526.6,0.8178]
[1746964583619,0.13132339,2527.5,2526.6,0.8178]
[1746964583820,3.95692717,2527.3,2526.6,1.17168]
[1746964584317,0.13132339,2527.2,2526.7,0.03957204]
[1746964584533,4.72138226,2527.5,2526.6,1.17168]
[1746964584534,0.7649,2527.5,2526.6,3.89268]
[1746964584841,3.95694699,2527.3,2526.6,3.89268]
[1746964585127,3.95702911,2527.2,2526.6,3.89268]
[1746964585327,0.13132339,2527.1,2526.6,3.89268]
[1746964585542,3.95697255,2527.2,2526.6,3.89268]
[1746964585727,4.08849169,2527.1,2526.6,3.89268]
[1746964585920,0.13132339,2527.1,2526.6,3.89268]
[1746964586098,3.9568248,2527.3,2526.6,3.89268]
[1746964586299,4.08828085,2527.2,2526.6,3.89268]
[1746964586733,0.13132339,2527.2,2526.6,3.89268]
[1746964587037,0.13132339,2527.2,2526.7,0.42884176]
[1746964587402,3.95686353,2527.3,2526.7,0.42884176]
[1746964587601,0.13132339,2527.1,2526.7,0.42884176]
[1746964587899,3.95686353,2527.3,2526.7,0.42884176]
[1746964588228,0.13064357,2527.2,2526.7,0.42884176]
[1746964588414,0.13064357,2527.2,2526.8,0.7934]
[1746964588619,0.13064357,2527.2,2526.9,0.83296714]
[1746964588925,0.12062558,2527.1,2526.9,0.83296714]
[1746964589132,3.95640018,2527.6,2526.9,0.7934]
[1746964589328,0.12062558,2527.5,2527.0,0.39060593]
[1746964589539,3.95624104,2527.7,2527.0,0.39060593]
[1746964589734,0.12062558,2527.6,2527.0,0.39060593]
[1746964589926,3.95624422,2527.7,2527.0,0.39060593]
[1746964590126,0.12130617,2527.6,2527.0,0.39060593]
[1746964590323,0.12130617,2527.6,2527.1,0.7934]
[1746964590539,3.95626961,2527.7,2527.2,2.721]
[1746964590839,0.12130617,2527.6,2527.2,2.721]
[1746964591427,0.12130617,2527.6,2527.3,0.7934]
[1746964591851,3.95639048,2527.6,2527.3,0.7934]
[1746964592013,0.12334775,2527.5,2527.3,0.7934]
[1746964592220,0.12334775,2527.5,2527.3,0.83296491]
[1746964592518,0.11340642,2527.4,2527.3,1.1867614]
[1746964592717,14.00549413,2528.2,2527.3,1.1867614]
[1746964592917,0.11340642,2528.1,2527.4,0.7918]
[1746964593149,0.11340642,2528.1,2527.5,0.03955998]
[1746964593661,0.11340642,2528.1,2527.6,0.7918]
[1746964593836,0.7615,2528.0,2527.3,0.7918]
[1746964594421,0.11340642,2527.9,2527.5,8.7918]
[1746964594657,0.11340642,2527.9,2527.6,0.7918]
[1746964594855,14.00490916,2528.6,2527.7,0.03955503]
[1746964595154,1.57664092,2528.5,2527.8,2.721]
[1746964595362,0.11340642,2528.4,2527.9,8.0]
[1746964595541,0.11340642,2528.4,2528.1,0.7918]
[1746964595719,4.95469467,2528.7,2528.1,0.7918]
[1746964595923,0.11340642,2528.6,2528.1,0.7918]
[1746964596152,0.11340642,2528.6,2528.2,2.721]
[1746964596352,5.04660117,2528.6,2528.2,2.721]
[1746964596557,0.11340642,2528.6,2528.3,0.7918]
[1746964596724,0.11340642,2528.6,2528.4,2.721]
[1746964597322,0.11340642,2528.6,2528.5,0.7918]
[1746964597523,1.0,2528.7,2528.5,8.7918]
[1746964597876,1.0,2528.7,2528.5,0.7918]
[1746964598056,4.95467774,2528.7,2527.6,0.7693]
[1746964598366,0.11340642,2528.6,2527.8,8.7693]
[1746964598662,1.0,2528.7,2528.0,8.0]
[1746964598867,1.0,2528.7,2528.2,0.7693]
[1746964599161,0.11340642,2528.6,2528.3,0.03954673]
[1746964599548,0.11340642,2528.6,2528.3,0.03954675]
[1746964599749,0.11340642,2528.6,2528.2,0.7693]
[1746964600061,0.69853738,2528.6,2528.3,2.715]
[1746964600227,0.11340642,2528.6,2528.3,2.715]
[1746964600856,3.95499515,2528.5,2528.3,2.715]
[1746964601156,3.95479657,2528.6,2528.3,2.715]
[1746964601356,3.95524927,2528.3,2527.9,0.7693]
[1746964601526,3.95524927,2528.3,2528.0,2.714]
[1746964601727,0.11340642,2528.2,2528.0,2.714]
[1746964601960,3.95500826,2528.5,2528.0,2.714]
[1746964602261,0.11340642,2528.4,2528.0,2.714]
[1746964604262,4.06848554,2528.4,2528.0,2.714]
[1746964605244,0.11340642,2528.4,2528.0,2.714]
[1746964605977,3.95483867,2528.6,2528.0,2.714]
[1746964605978,3.95494585,2528.5,2528.0,2.714]
[1746964606279,4.07432163,2528.4,2528.0,2.714]
[1746964606635,0.11924843,2528.4,2528.0,2.714]
[1746964606897,4.07436105,2528.4,2528.0,2.714]
[1746964607406,0.11924843,2528.4,2528.1,0.7693]
[1746964607556,0.11924843,2528.4,2528.2,5.427]
[1746964607901,4.95468258,2528.7,2528.1,0.7693]
[1746964608290,1.40192663,2528.7,2528.2,2.714]
[1746964608485,3.95487437,2528.6,2528.2,2.714]
[1746964608684,3.9549158,2528.5,2528.2,2.714]
[1746964608892,3.95483553,2528.6,2528.2,2.714]
[1746964609261,1.40192663,2528.7,2528.3,2.714]
[1746964609788,3.95485511,2528.6,2528.3,2.714]
[1746964610363,1.40192663,2528.7,2528.4,2.714]
[1746964610364,4.95466642,2528.7,2528.4,2.714]
[1746964610603,1.0,2528.7,2528.4,2.714]
[1746964611504,4.95465635,2528.7,2528.4,2.714]
[1746964611908,3.95481724,2528.6,2528.4,2.714]
[1746964612297,0.10908009,2528.5,2528.4,2.714]
[1746964612498,4.95467757,2528.7,2528.4,2.714]
[1746964612693,4.06386274,2528.6,2528.4,2.714]
[1746964612898,1.08601345,2528.6,2528.4,2.714]
[1746964613198,3.95491398,2528.5,2528.4,2.714]
[1746964613730,3.95553272,2528.2,2527.7,0.7836]
[1746964613932,0.10965396,2528.1,2527.8,2.714]
[1746964614134,3.95561515,2528.1,2527.8,2.714]
[1746964614423,0.10965396,2528.0,2527.9,2.714]
[1746964614783,4.71655268,2527.9,2527.8,2.714]
[1746964614989,3.95600917,2527.8,2527.7,2.714]
[1746964615289,3.95616647,2527.7,2527.3,8.0]
[1746964615629,3.95606972,2527.8,2527.4,2.714]
[1746964615804,0.10890074,2527.6,2527.4,2.714]
[1746964616005,0.09982568,2527.7,2527.5,2.714]
[1746964616213,3.95522683,2528.3,2527.1,0.7836]
[1746964616414,3.95628244,2527.7,2527.1,0.7836]
[1746964616725,3.95615004,2527.8,2527.2,2.714]
[1746964616883,0.09982568,2527.7,2527.2,2.714]
[1746964617086,0.09982568,2527.7,2527.2,3.33496]
[1746964617296,4.05602656,2527.7,2527.2,3.33496]
[1746964617530,0.09982568,2527.7,2527.2,3.33496]
[1746964617730,3.95590974,2527.9,2527.2,3.33496]
[1746964617924,4.05592378,2527.8,2527.2,3.33496]
[1746964618224,3.95629291,2527.7,2527.2,0.62096]
[1746964618395,3.95673912,2527.4,2526.8,0.8216]
[1746964618600,3.95660375,2527.5,2526.9,2.714]
[1746964618795,0.09559202,2527.3,2526.9,2.714]
[1746964619010,3.95668822,2527.4,2526.9,2.714]
[1746964619213,0.09559202,2527.2,2526.9,2.714]
[1746964619421,3.95671024,2527.4,2526.9,2.714]
[1746964619827,0.8086,2527.2,2526.7,14.231]
[1746964620027,0.8086,2527.2,2526.7,16.946]
[1746964620232,0.09526901,2527.1,2526.7,16.946]
[1746964620453,0.8086,2527.4,2526.7,16.946]
[1746964620454,4.76529945,2527.4,2526.7,16.946]
[1746964620746,0.09523312,2527.3,2526.7,16.946]
[1746964621037,3.95702114,2527.2,2526.7,16.946]
[1746964621224,3.95706494,2527.2,2526.8,2.715]
[1746964621416,3.95692158,2527.3,2526.8,2.715]
[1746964621616,0.09523312,2527.1,2526.8,2.715]
[1746964621819,3.95692158,2527.3,2526.8,2.715]
[1746964622038,0.09523312,2527.0,2526.8,2.715]
[1746964622339,0.09523312,2526.9,2526.8,2.715]
[1746964622637,0.8086,2527.4,2526.8,2.715]
[1746964622838,0.09523312,2526.9,2526.8,2.715]
[1746964623040,3.95682266,2527.3,2526.8,2.715]
[1746964623344,0.09523312,2527.2,2526.8,2.715]
[1746964623542,3.95682266,2527.3,2526.8,2.715]
[1746964623739,0.09523312,2527.2,2526.8,2.715]
[1746964623924,0.8142,2527.6,2526.9,0.8176]
[1746964624131,0.09523312,2527.5,2526.9,0.85717493]
[1746964624340,10.05,2527.7,2526.9,0.85717493]
[1746964624532,0.09523312,2527.6,2526.9,0.85717493]
[1746964625045,0.09523312,2527.6,2526.9,0.8176]
[1746964625246,0.09523312,2527.6,2527.1,0.8176]
[1746964625431,0.09523312,2527.6,2527.2,0.03956759]
[1746964625748,0.09433577,2527.5,2527.3,0.8176]
[1746964625925,3.95528132,2528.3,2527.3,0.8176]
[1746964625926,3.95528132,2528.3,2527.4,10.715]
[1746964626250,0.09462295,2528.2,2527.6,0.8176]
[1746964626615,3.95510774,2528.4,2527.6,0.8176]
[1746964626950,8.0,2528.3,2527.6,1.17481579]
[1746964627149,0.09473063,2528.2,2527.6,1.17481579]
[1746964627338,4.95469693,2528.7,2527.7,0.8571579]
[1746964627535,4.04949579,2528.6,2527.7,3.5691579]
[1746964627850,0.09473063,2528.6,2527.7,3.5691579]
[1746964628151,0.09473063,2528.6,2527.9,0.7562]
[1746964628313,0.09473063,2528.6,2528.0,2.75155116]
[1746964628925,0.09473063,2528.6,2528.0,2.712]
[1746964629331,0.09473063,2528.6,2528.1,0.7562]
[1746964630364,0.09473063,2528.6,2528.2,0.03954901]
[1746964630548,0.09473063,2528.6,2528.2,0.39032391]
[1746964632475,0.09473063,2528.6,2528.3,0.7562]
[1746964632634,0.09473063,2528.6,2528.4,0.03954686]
[1746964633570,0.09473063,2528.6,2528.5,0.818]
[1746964634746,0.09473063,2528.6,2528.5,3.529]
[1746964634947,0.09473063,2528.6,2528.2,1.1687749]
[1746964635168,0.09473063,2528.6,2528.3,2.711]
[1746964635939,0.09473063,2528.6,2528.4,0.03954798]
[1746964636437,0.09473063,2528.6,2528.3,3.0678549]
[1746964636662,0.09473063,2528.6,2528.4,0.03954672]
[1746964638540,0.09473063,2528.6,2528.5,0.7683]
[1746964640442,1.0,2528.7,2528.5,0.7683]
[1746964640752,0.10423663,2528.6,2528.5,0.7683]
[1746964640952,0.10423663,2528.6,2528.5,1.15191549]
[1746964642079,0.10423663,2528.6,2528.5,3.86091549]
[1746964642284,1.0,2528.7,2528.5,3.86091549]
[1746964643061,1.0,2528.7,2528.6,2.711]
[1746964643455,1.10653087,2528.7,2528.6,2.711]
[1746964643655,1.0,2528.7,2528.6,2.711]
[1746964643858,0.005,2529.4,2529.3,9.309]
[1746964644058,0.005,2530.0,2529.4,1.309]
[1746964644260,0.005,2530.0,2529.6,0.55]
[1746964644464,0.005,2530.0,2529.7,0.759]
[1746964644666,0.005,2530.0,2529.9,0.7958]
[1746964645285,0.005,2530.0,2529.9,3.5068]
[1746964646081,0.005,2530.0,2529.9,3.54632003]
[1746964646956,0.005,2530.0,2529.9,3.5068]
[1746964647293,0.005,2530.0,2529.9,0.83532099]
[1746964647500,0.005,2530.0,2529.9,6.2138]
[1746964647885,0.005,2530.0,2529.9,6.83518]
[1746964648084,0.005,2530.0,2529.9,7.38518]
[1746964648286,0.005,2530.0,2529.9,9.96718]
[1746964648490,0.005,2530.0,2529.9,15.38518]
[1746964648984,0.005,2530.0,2529.9,35.848539]
[1746964649190,0.005,2530.3,2530.0,8.55]
[1746964649403,0.005,2530.3,2530.2,1.3464]
[1746964649586,0.005,2530.3,2530.2,9.3464]
[1746964649755,0.005,2530.3,2530.2,0.7964]
[1746964650091,0.005,2530.3,2530.2,8.7964]
[1746964650297,3.90593327,2531.1,2530.3,8.0]
[1746964650503,0.78565818,2531.1,2530.3,9.20698633]
[1746964650666,3.95119841,2530.9,2530.3,1.20698633]
[1746964650994,4.73657929,2531.1,2530.4,5.45951444]
[1746964651165,0.78565818,2531.1,2530.4,5.45951444]
[1746964651367,4.73651377,2531.1,2530.5,2.71]
[1746964651686,3.95112946,2531.0,2530.2,15.0194]
[1746964651862,0.78565818,2531.1,2530.3,0.03951459]
[1746964652201,0.7537,2531.5,2530.5,8.55]
[1746964652362,0.7537,2531.5,2530.6,0.7964]
[1746964652559,3.94979702,2531.8,2530.7,0.03950674]
[1746964652855,3.95015776,2531.6,2530.6,0.7964]
[1746964653065,3.95008171,2531.6,2530.6,0.7964]
[1746964653283,4.3452353,2531.5,2530.6,10.00204]
[1746964654273,0.39500817,2531.5,2530.6,10.00204]
[1746964654782,0.7816,2531.8,2530.6,10.00204]
[1746964654981,3.95018849,2531.6,2530.6,10.00204]
[1746964655179,3.94991507,2531.7,2530.6,10.00204]
[1746964655381,3.95022282,2531.6,2530.7,0.03950675]
[1746964655685,3.9500711,2531.6,2530.7,0.03950675]
[1746964655872,3.95023314,2531.5,2530.7,8.66223308]
[1746964656068,3.95046954,2531.4,2530.7,0.62272633]
[1746964656394,3.95084967,2531.2,2530.8,2.709]
[1746964656894,3.95088008,2531.1,2530.8,2.709]
[1746964657095,10.05,2531.4,2530.8,2.709]
[1746964657270,3.95062381,2531.3,2530.8,2.709]